bitfinex/quotes_ETHUSD_20230105
["timestamp","ask_amount","ask_price","bid_price","bid_amount"]
[1672961167618,37.543544,1249.8,1249.7,0.0020699]
[1672961167974,25.12165375,1249.8,1249.7,0.0020699]
[1672961168144,33.12293375,1249.8,1249.7,0.0020699]
[1672961169182,17.12037375,1249.8,1249.7,0.0020699]
[1672961169396,13.309704,1249.8,1249.7,0.0020699]
[1672961169631,16.29240623,1249.8,1249.7,0.0020699]
[1672961170388,13.309704,1249.8,1249.7,8.0039899]
[1672961170703,16.29210458,1249.8,1249.7,16.1049099]
[1672961170913,14.35748976,1249.8,1249.7,16.1049099]
[1672961171283,11.37508918,1249.8,1249.7,16.1049099]
[1672961171492,11.37508918,1249.8,1249.7,24.1068299]
[1672961171493,13.16473687,1249.8,1249.7,24.1068299]
[1672961171703,9.17558736,1249.8,1249.7,24.1068299]
[1672961171931,6.78964769,1249.8,1249.7,24.58538915]
[1672961172574,6.78964769,1249.8,1249.7,27.84413207]
[1672961172766,1.78964769,1249.8,1249.7,27.84413207]
[1672961173847,4.24158736,1249.9,1249.7,27.84413207]
[1672961174061,1.78964769,1249.9,1249.7,27.84413207]
[1672961176402,4.17558736,1249.9,1249.7,27.84413207]
[1672961177074,1.78964769,1249.9,1249.7,27.84413207]
[1672961177320,1.78964769,1249.9,1249.7,27.8417099]
[1672961178065,4.17558736,1249.9,1249.7,27.8417099]
[1672961178378,4.17558736,1249.8,1249.7,0.099]
[1672961178568,4.17558736,1249.8,1249.7,8.00192]
[1672961178902,4.17558736,1249.8,1249.7,16.10284]
[1672961179425,4.17558736,1249.8,1249.7,24.10476]
[1672961179595,4.24158736,1249.9,1249.7,28.44136]
[1672961179809,1.78964769,1249.9,1249.7,28.44136]
[1672961180206,1.7862617,1249.9,1249.7,28.44136]
[1672961180980,1.8362617,1249.9,1249.7,28.44136]
[1672961181154,1.7862617,1249.9,1249.7,28.44136]
[1672961181636,2.79393967,1250.0,1249.7,28.91991925]
[1672961181825,2.98240058,1250.1,1249.8,16.00256]
[1672961181826,2.45193967,1250.1,1249.8,16.00256]
[1672961182036,2.45193967,1250.2,1249.8,29.4057149]
[1672961182368,5.36834025,1250.2,1250.0,24.0]
[1672961182588,5.0,1250.1,1250.0,24.099]
[1672961182744,5.0,1250.1,1250.0,26.41463004]
[1672961182961,5.43434025,1250.2,1250.0,26.41463004]
[1672961183311,5.36834025,1250.2,1250.0,26.41463004]
[1672961183888,2.38593967,1250.2,1250.0,26.41463004]
[1672961184104,5.36834025,1250.2,1250.0,26.41463004]
[1672961187209,2.43593967,1250.2,1250.0,26.41463004]
[1672961187422,5.46625907,1250.3,1250.0,26.41463004]
[1672961187642,5.40025907,1250.3,1250.0,26.41463004]
[1672961188546,2.38593967,1250.2,1250.0,26.41463004]
[1672961188770,2.38793967,1250.2,1250.0,26.41163004]
[1672961189156,2.38593967,1250.2,1250.0,26.41463004]
[1672961189364,4.17424491,1250.2,1250.0,26.41463004]
[1672961189846,4.17424491,1250.2,1250.0,0.099]
[1672961190053,4.17424491,1250.1,1249.9,19.50983]
[1672961190290,1.78830524,1250.0,1249.9,11.5095]
[1672961190576,4.17424491,1250.0,1249.9,11.5095]
[1672961190730,4.17424491,1250.0,1249.9,8.09964]
[1672961190731,1.78830524,1250.0,1249.9,8.09964]
[1672961191399,4.17424491,1250.0,1249.9,8.09964]
[1672961192053,10.32975431,1250.0,1249.9,0.099]
[1672961192214,7.94381464,1250.0,1249.7,8.00189]
[1672961192430,7.94381464,1250.0,1249.7,16.10255]
[1672961192431,8.16054917,1249.9,1249.7,16.10255]
[1672961192645,9.6562706,1249.9,1249.7,16.10255]
[1672961192858,9.6562706,1249.9,1249.7,24.10447]
[1672961194443,1.78774271,1249.8,1249.7,24.10447]
[1672961194862,9.7222706,1249.9,1249.7,24.10447]
[1672961195071,1.78774271,1249.8,1249.7,16.10255]
[1672961195303,1.78774271,1249.8,1249.7,0.099]
[1672961195524,1.78774271,1249.8,1249.6,0.099]
[1672961195525,17.43229629,1249.8,1249.6,0.099]
[1672961195685,1.78773727,1249.7,1249.5,19.31338]
[1672961195898,1.78773727,1249.7,1249.6,8.00256]
[1672961196263,1.78773727,1249.7,1249.6,16.10412]
[1672961196520,2.79748836,1249.7,1249.6,16.10412]
[1672961197008,2.79748836,1249.7,1249.6,8.10156]
[1672961197589,2.79748836,1249.7,1249.6,16.10412]
[1672961198584,14.78855787,1249.7,1249.6,0.099]
[1672961198739,26.96939813,1249.7,1249.4,0.099]
[1672961198951,1.78751534,1249.5,1249.3,0.3816574]
[1672961199212,4.80518169,1249.5,1249.3,0.2826574]
[1672961199425,6.59269703,1249.5,1249.3,16.2915374]
[1672961199634,6.59269703,1249.5,1249.3,16.3905374]
[1672961199635,4.80518169,1249.5,1249.3,16.3905374]
[1672961199990,4.80518169,1249.5,1249.3,24.3950174]
[1672961200484,4.80518169,1249.5,1249.3,16.3905374]
[1672961200669,14.59486386,1249.5,1249.3,0.3816574]
[1672961200832,14.59486386,1249.5,1249.3,0.2826574]
[1672961200833,14.59507386,1249.5,1249.3,0.2826574]
[1672961201048,6.59167379,1249.5,1249.3,0.2826574]
[1672961201312,4.80518169,1249.5,1249.3,24.2958574]
[1672961201536,4.23918598,1249.6,1249.3,16.3903774]
[1672961201766,8.16233549,1249.6,1249.3,24.3948574]
[1672961202270,6.37820168,1249.6,1249.3,24.3918574]
[1672961202424,1.78645217,1249.6,1249.3,29.43417357]
[1672961202887,1.78645217,1249.6,1249.4,2.5]
[1672961203238,1.78645217,1249.6,1249.5,24.0096]
[1672961203390,1.78645217,1249.6,1249.5,24.58715925]
[1672961203602,1.78645217,1249.6,1249.5,28.09619718]
[1672961203970,1.78645217,1249.6,1249.5,28.09237538]
[1672961205068,0.066,1249.8,1249.5,28.09237538]
[1672961205326,4.17003825,1249.9,1249.6,0.47855925]
[1672961205496,4.17003825,1249.9,1249.7,24.00576]
[1672961205699,4.17003825,1249.9,1249.7,24.10476]
[1672961205907,4.17003825,1249.9,1249.7,27.36332293]
[1672961206118,2.44965695,1250.0,1249.7,35.84380218]
[1672961206438,1.72071783,1250.0,1249.7,35.84380218]
[1672961206767,4.10306022,1250.0,1249.7,24.10476]
[1672961207960,6.60306022,1250.0,1249.7,24.10476]
[1672961208127,2.38234239,1250.0,1249.7,24.10476]
[1672961208553,6.03114297,1250.1,1249.7,24.10476]
[1672961208779,9.35389248,1250.1,1249.7,28.87999325]
[1672961208960,2.38234239,1250.0,1249.7,28.87999325]
[1672961209835,0.05,1249.9,1249.7,28.87999325]
[1672961209999,2.38234239,1250.0,1249.7,28.87999325]
[1672961210868,12.30689248,1250.1,1249.7,28.87999325]
[1672961211061,12.24089248,1250.1,1249.7,28.87999325]
[1672961212257,5.36474297,1250.1,1249.7,28.87999325]
[1672961213332,7.86474297,1250.1,1249.7,28.87999325]
[1672961213995,10.77974297,1250.1,1249.7,28.87999325]
[1672961214203,7.86474297,1250.1,1249.7,28.87999325]
[1672961214679,5.36474297,1250.1,1249.7,28.87999325]
[1672961215086,2.38234239,1250.1,1249.7,28.87999325]
[1672961215487,4.17029174,1250.1,1249.7,28.87999325]
[1672961217257,1.78794935,1250.1,1249.7,28.87999325]
[1672961220257,1.78794935,1250.1,1249.7,32.86914276]
[1672961221052,1.78794935,1250.0,1249.7,28.87999325]
[1672961221255,4.65992091,1250.1,1249.7,28.87999325]
[1672961221495,1.78794935,1250.0,1249.7,28.87999325]
[1672961223643,2.44835174,1250.1,1249.8,6.48914951]
[1672961223975,9.35e-06,1250.1,1249.9,32.00256]
[1672961224138,2.38234239,1250.2,1249.9,32.10156]
[1672961224330,2.38234239,1250.2,1249.9,37.05980095]
[1672961225960,2.38234239,1250.2,1249.9,29.05916095]
[1672961226278,2.38234239,1250.2,1249.9,16.10009]
[1672961226642,5.36474297,1250.2,1249.9,16.10009]
[1672961226903,5.36474297,1250.2,1249.9,24.10073]
[1672961227116,2.38234239,1250.1,1249.9,16.10009]
[1672961228379,2.43234239,1250.1,1249.9,16.10009]
[1672961228597,2.38234239,1250.1,1249.9,16.10009]
[1672961229220,2.38234239,1250.0,1249.9,0.099]
[1672961229437,5.36474297,1250.0,1249.8,0.099]
[1672961229590,5.36474297,1250.0,1249.9,8.00064]
[1672961229791,3.54366717,1250.0,1249.9,0.099]
[1672961230002,3.54366717,1250.0,1249.9,8.00064]
[1672961230246,3.54366717,1250.0,1249.9,8.09964]
[1672961231510,3.54366717,1250.0,1249.9,0.099]
[1672961231709,3.54366717,1250.0,1249.8,24.1017]
[1672961232352,1.16132478,1250.0,1249.8,24.1017]
[1672961232788,2.94918188,1250.0,1249.8,24.1017]
[1672961233002,5.33152427,1250.0,1249.8,24.1017]
[1672961233215,5.33152427,1250.0,1249.8,8.09979]
[1672961233526,5.93192427,1250.0,1249.8,0.099]
[1672961233738,1.7878571,1249.9,1249.7,8.10061]
[1672961233948,1.7878571,1249.9,1249.7,16.10253]
[1672961233949,3.18107153,1249.9,1249.7,16.10253]
[1672961234295,3.18107153,1249.9,1249.7,24.10445]
[1672961234579,0.05,1249.8,1249.7,0.099]
[1672961234746,19.3114171,1249.8,1249.5,0.099]
[1672961234961,19.3114171,1249.8,1249.4,35.1113]
[1672961234962,23.1774025,1249.8,1249.4,35.1113]
[1672961235175,15.1761225,1249.8,1249.4,35.1113]
[1672961235359,7.1748425,1249.8,1249.4,35.1113]
[1672961235570,3.3088571,1249.8,1249.4,35.58985925]
[1672961239319,5.69119949,1249.8,1249.4,35.58985925]
[1672961240166,4.17019949,1249.8,1249.4,35.58985925]
[1672961240380,1.7878571,1249.8,1249.4,35.58985925]
[1672961241407,4.17019949,1249.8,1249.4,35.58985925]
[1672961241741,4.17019949,1249.8,1249.4,41.16935167]
[1672961247520,4.17019949,1249.8,1249.4,41.16699774]
[1672961248681,1.7878571,1249.8,1249.4,53.15998725]
[1672961248825,1.7878571,1249.8,1249.5,0.23]
[1672961249042,1.7878571,1249.8,1249.6,32.01024]
[1672961249416,1.8538571,1249.9,1249.6,35.333264]
[1672961249563,1.7878571,1249.9,1249.8,32.00512]
[1672961249775,6.7878571,1249.9,1249.8,32.10412]
[1672961250042,1.7878571,1249.9,1249.8,32.10412]
[1672961250207,1.7878571,1249.9,1249.8,35.314532]
[1672961252044,4.17019949,1249.9,1249.8,0.099]
[1672961252260,4.17019949,1249.9,1249.8,16.00256]
[1672961252406,2.38234239,1249.9,1249.8,0.099]
[1672961252614,2.38234239,1249.9,1249.7,24.10406]
[1672961252846,2.38234239,1249.9,1249.7,8.10064]
[1672961252847,1.7902502,1249.8,1249.7,8.10064]
[1672961253094,1.7902502,1249.8,1249.7,16.10256]
[1672961253468,1.7902502,1249.8,1249.7,24.10448]
[1672961254774,1.7902502,1249.8,1249.7,8.10064]
[1672961254775,1.8172502,1249.8,1249.7,8.10064]
[1672961254992,1.8172502,1249.8,1249.7,0.099]
[1672961254993,1.81363489,1249.8,1249.7,0.099]
[1672961255133,1.81363489,1249.8,1249.6,16.1033]
[1672961255349,1.81363489,1249.8,1249.6,24.10559]
[1672961257097,0.027,1249.8,1249.6,24.10559]
[1672961257241,0.027,1249.8,1249.6,8.10108]
[1672961257453,0.027,1249.8,1249.6,16.10364]
[1672961257723,0.027,1249.8,1249.6,24.1062]
[1672961260127,2.38234239,1249.9,1249.6,36.092101]
[1672961260459,3.04840058,1250.0,1249.6,36.092101]
[1672961260460,5.43074297,1250.0,1249.6,36.092101]
[1672961260651,5.36474297,1250.0,1249.6,36.092101]
[1672961261487,2.38234239,1249.9,1249.6,36.092101]
[1672961261703,2.38234239,1249.9,1249.6,4.082341]
[1672961262092,14.15856727,1249.9,1249.6,8.00237]
[1672961262229,14.15856727,1249.9,1249.6,8.10137]
[1672961262686,6.15781727,1249.9,1249.6,16.10393]
[1672961262900,2.38234239,1249.9,1249.6,24.10649]
[1672961264069,1.79100754,1249.8,1249.6,24.10649]
[1672961264471,4.23934993,1249.9,1249.6,24.10649]
[1672961264807,4.17334993,1249.9,1249.6,24.10649]
[1672961265023,1.79100754,1249.8,1249.6,28.402041]
[1672961266886,1.79100754,1249.8,1249.6,12.396921]
[1672961267163,4.17334993,1249.8,1249.6,12.396921]
[1672961267321,1.79100754,1249.8,1249.6,20.399621]
[1672961267725,1.79100754,1249.8,1249.6,28.402181]
[1672961271414,4.23934993,1249.9,1249.6,31.38166269]
[1672961271727,1.79100754,1249.8,1249.6,28.402181]
[1672961272112,4.23934993,1249.9,1249.6,31.38160918]
[1672961272323,1.79100754,1249.8,1249.6,28.402181]
[1672961272961,4.23934993,1249.9,1249.6,31.38166571]
[1672961273164,4.17334993,1249.9,1249.6,31.38161307]
[1672961274058,1.79100754,1249.8,1249.6,28.402181]
[1672961274864,4.23934993,1249.9,1249.6,31.38168915]
[1672961275070,4.23934993,1249.9,1249.8,1.19173084]
[1672961275071,1.79100754,1249.9,1249.8,1.19173084]
[1672961275285,1.79100754,1249.9,1249.8,25.19557084]
[1672961275515,1.79100754,1249.9,1249.8,25.29457084]
[1672961278578,1.79100754,1249.9,1249.8,17.29329084]
[1672961279944,1.79100754,1249.9,1249.8,9.29201084]
[1672961280156,4.17334993,1249.9,1249.8,9.29201084]
[1672961281537,4.17334993,1249.9,1249.8,9.28981922]
[1672961281738,4.17334993,1249.9,1249.8,17.29109922]
[1672961281949,1.79100754,1249.9,1249.8,25.29237922]
[1672961283821,1.79100754,1249.9,1249.8,28.61876214]
[1672961283822,1.79300754,1249.9,1249.8,28.61876214]
[1672961283953,1.90700754,1250.0,1249.8,30.60777918]
[1672961284144,4.23934993,1250.1,1249.8,28.62176214]
[1672961284352,4.17334993,1250.1,1249.8,28.62176214]
[1672961284810,4.17334993,1250.1,1249.8,31.60069866]
[1672961285103,1.79100754,1250.1,1250.0,8.0]
[1672961285333,1.79100754,1250.1,1250.0,8.099]
[1672961285577,1.79100754,1250.1,1250.0,16.099]
[1672961285795,4.17334993,1250.1,1250.0,16.099]
[1672961286224,1.79100754,1250.1,1250.0,16.099]
[1672961287552,1.79100754,1250.1,1250.0,24.099]
[1672961288092,4.22334993,1250.1,1250.0,24.099]
[1672961288429,1.79100754,1250.1,1250.0,24.099]
[1672961288741,12.04934993,1250.2,1250.0,27.331903]
[1672961288958,4.17334993,1250.2,1250.0,27.331903]
[1672961289172,1.79100754,1250.2,1250.1,26.49808]
[1672961289315,1.79100754,1250.2,1250.1,26.59708]
[1672961289524,4.27126875,1250.3,1250.1,30.3800783]
[1672961289801,4.20526875,1250.3,1250.1,30.3800783]
[1672961290165,1.82292636,1250.3,1250.1,30.3800783]
[1672961290600,1.82292636,1250.3,1250.1,27.8800783]
[1672961291686,1.82292636,1250.3,1250.1,28.35863755]
[1672961292264,0.03191882,1250.3,1250.1,28.35863755]
[1672961297750,0.03191882,1250.3,1250.1,32.34778706]
[1672961297955,0.03191882,1250.4,1250.3,7.99808]
[1672961298231,1.82292636,1250.5,1250.3,33.407128]
[1672961298443,0.03191882,1250.5,1250.3,33.407128]
[1672961299269,8.82e-06,1250.5,1250.3,33.407128]
[1672961299474,8.82e-06,1250.5,1250.3,33.88568725]
[1672961302508,7.99692882,1250.5,1250.3,1.89336725]
[1672961302870,1.79101636,1250.5,1250.3,3.0]
[1672961303900,1.79101636,1250.5,1250.3,10.99795]
[1672961304179,1.79101636,1250.5,1250.3,11.09695]
[1672961305060,4.17335875,1250.5,1250.3,11.09695]
[1672961306193,1.79100754,1250.4,1250.3,11.09695]
[1672961306545,4.23935875,1250.5,1250.3,11.09704]
[1672961306758,4.17335875,1250.5,1250.3,11.09704]
[1672961306971,4.17335875,1250.5,1250.3,19.09512]
[1672961307551,1.79100754,1250.4,1250.3,19.09512]
[1672961308334,1.79100754,1250.4,1250.3,8.09708]
[1672961308906,1.79100754,1250.4,1250.3,16.09516]
[1672961309748,1.79100754,1250.4,1250.3,24.09324]
[1672961310009,1.79100754,1250.4,1250.3,25.23596533]
[1672961310332,1.85701636,1250.5,1250.3,28.23596533]
[1672961310544,1.85701636,1250.5,1250.3,28.46596533]
[1672961310545,1.79101636,1250.5,1250.3,28.46596533]
[1672961310857,1.79101636,1250.5,1250.3,28.23596533]
[1672961313698,4.17335875,1250.5,1250.3,28.23596533]
[1672961314710,8.82e-06,1250.5,1250.3,28.23596533]
[1672961314914,8.82e-06,1250.5,1250.4,0.23]
[1672961315376,8.82e-06,1250.5,1250.4,24.22232]
[1672961315596,8.82e-06,1250.5,1250.4,29.53453341]
[1672961318428,8.82e-06,1250.5,1250.4,24.32132]
[1672961318576,1.79101636,1250.5,1250.4,24.32132]
[1672961319257,4.17335875,1250.5,1250.4,24.32132]
[1672961319451,1.79101636,1250.5,1250.4,24.32132]
[1672961320884,4.17335875,1250.5,1250.4,24.32132]
[1672961321323,4.17335875,1250.5,1250.4,29.53453341]
[1672961321534,4.17335875,1250.5,1250.4,5.31221341]
[1672961321743,2.38235121,1250.5,1250.4,8.09644]
[1672961321955,2.38235121,1250.5,1250.4,0.099]
[1672961322212,5.36475179,1250.5,1250.3,22.77763925]
[1672961322436,1.79038294,1250.4,1250.3,30.77571925]
[1672961322606,1.79038294,1250.4,1250.3,38.77379925]
[1672961322830,1.79038294,1250.4,1250.3,43.45101818]
[1672961323206,1.79038294,1250.4,1250.3,32.24523544]
[1672961323735,1.79038294,1250.4,1250.3,32.47523544]
[1672961328251,4.17272533,1250.4,1250.3,32.47523544]
[1672961329215,2.38234239,1250.4,1250.3,32.47523544]
[1672961329614,1.79255716,1250.4,1250.3,32.47523544]
[1672961333715,4.17489955,1250.4,1250.3,32.47523544]
[1672961333967,1.79255716,1250.4,1250.3,32.47523544]
[1672961334572,4.24090837,1250.5,1250.3,36.46438495]
[1672961334789,4.24090837,1250.5,1250.4,2.66]
[1672961334790,4.17490837,1250.5,1250.4,2.66]
[1672961334984,4.17490837,1250.5,1250.4,30.5647585]
[1672961335197,4.17490837,1250.5,1250.4,30.6637585]
[1672961340270,4.17690837,1250.5,1250.4,30.6607585]
[1672961340476,4.17490837,1250.5,1250.4,30.6637585]
[1672961340929,1.79256598,1250.5,1250.4,30.6637585]
[1672961344161,4.17490837,1250.5,1250.4,30.6637585]
[1672961344858,1.79256598,1250.5,1250.4,30.6637585]
[1672961348358,1.79256598,1250.5,1250.4,14.6688785]
[1672961348574,4.17490837,1250.5,1250.4,10.75644]
[1672961349044,4.17490837,1250.5,1250.4,18.75388]
[1672961349416,1.79256598,1250.5,1250.4,26.75132]
[1672961349871,1.79256598,1250.5,1250.4,29.75132]
[1672961352353,8.82e-06,1250.5,1250.4,29.75132]
[1672961352489,8.82e-06,1250.5,1250.4,33.97325188]
[1672961352704,1.79256598,1250.5,1250.4,33.97325188]
[1672961353163,4.17490837,1250.5,1250.4,17.97837188]
[1672961353336,4.17490837,1250.5,1250.4,4.238]
[1672961353540,29.35515179,1250.5,1250.4,3.22686434]
[1672961353850,7.99680882,1250.5,1250.3,19.62031002]
[1672961353995,2.38826576,1250.4,1250.3,0.099]
[1672961354207,2.38826576,1250.4,1250.3,18.99589]
[1672961354415,5.37359796,1250.4,1250.3,19.09489]
[1672961354604,4.33895985,1250.4,1250.3,3.099]
[1672961354816,4.33895985,1250.4,1250.3,3.0]
[1672961355382,4.33895985,1250.4,1250.3,18.99616]
[1672961355583,4.33895985,1250.4,1250.3,19.09516]
[1672961356024,4.17947282,1250.4,1250.3,27.09324]
[1672961359866,1.79123748,1250.4,1250.3,27.09324]
[1672961363859,2.38823534,1250.4,1250.3,27.09324]
[1672961364118,4.17934852,1250.4,1250.3,27.09324]
[1672961364329,2.38823534,1250.4,1250.3,27.09324]
[1672961364500,5.37356754,1250.4,1250.3,27.09324]
[1672961364709,5.37356754,1250.4,1250.3,24.09324]
[1672961366858,2.38823534,1250.4,1250.3,24.09324]
[1672961367227,4.17909061,1250.4,1250.3,24.09324]
[1672961370707,2.38823534,1250.4,1250.3,24.09324]
[1672961373221,4.17882211,1250.4,1250.3,24.09324]
[1672961373739,4.17882211,1250.4,1250.3,26.31926014]
[1672961373740,1.79058677,1250.4,1250.3,26.31926014]
[1672961375155,1.79058677,1250.4,1250.3,29.31926014]
[1672961376191,8.76083093,1250.5,1250.3,29.31926014]
[1672961376412,1.79058677,1250.4,1250.3,29.31926014]
[1672961377398,1.79058677,1250.4,1250.3,33.30479383]
[1672961377695,6.37259559,1250.5,1250.3,33.30479383]
[1672961377889,6.30659559,1250.5,1250.4,5.66]
[1672961378098,6.30659559,1250.5,1250.4,33.64779938]
[1672961378639,8.69483093,1250.5,1250.4,33.64779938]
[1672961379019,6.30659559,1250.5,1250.4,33.64779938]
[1672961379863,8.69483093,1250.5,1250.4,33.64779938]
[1672961383349,6.30659559,1250.5,1250.4,33.64779938]
[1672961383756,8.69483093,1250.5,1250.4,33.64779938]
[1672961383961,8.69483093,1250.5,1250.4,29.75132]
[1672961384278,8.69483093,1250.5,1250.4,3.099]
[1672961384279,9.88957636,1250.5,1250.4,3.099]
[1672961384486,9.88905722,1250.5,1250.4,3.0]
[1672961384741,9.88905722,1250.5,1250.4,18.99488]
[1672961384928,9.88905722,1250.5,1250.4,19.09388]
[1672961385308,9.88905722,1250.5,1250.4,3.099]
[1672961385519,9.88905722,1250.5,1250.4,10.99744]
[1672961385728,9.88905722,1250.5,1250.4,11.09644]
[1672961386207,9.88905722,1250.5,1250.4,27.09132]
[1672961387208,6.90372502,1250.5,1250.4,27.09132]
[1672961388398,9.88905722,1250.5,1250.4,27.09132]
[1672961388822,6.90372502,1250.5,1250.4,27.09132]
[1672961389223,8.69504102,1250.5,1250.4,27.09132]
[1672961395855,6.90372502,1250.5,1250.4,27.09132]
[1672961396211,9.88905722,1250.5,1250.4,11.09644]
[1672961396802,9.88905722,1250.5,1250.4,19.09388]
[1672961397072,6.90372502,1250.5,1250.4,27.09132]
[1672961398011,8.69611695,1250.5,1250.4,27.09132]
[1672961398185,9.88905722,1250.5,1250.4,27.09132]
[1672961398395,9.88905722,1250.5,1250.4,27.08914828]
[1672961399164,6.90372502,1250.5,1250.4,27.08914828]
[1672961399574,8.69608933,1250.5,1250.4,27.08914828]
[1672961399966,6.90372502,1250.5,1250.4,27.08914828]
[1672961401043,9.88905722,1250.5,1250.4,27.08914828]
[1672961401379,6.90372502,1250.5,1250.4,27.08914828]
[1672961401692,9.88905722,1250.5,1250.4,27.08914828]
[1672961402579,6.90372502,1250.5,1250.4,27.08914828]
[1672961402938,9.88905722,1250.5,1250.4,27.08914828]
[1672961403149,6.90372502,1250.5,1250.4,27.08914828]
[1672961404121,8.49684674,1250.5,1250.4,0.099]
[1672961404276,9.09218429,1250.5,1250.3,0.099]
[1672961404637,5.37601045,1250.4,1250.3,15.99604]
[1672961404863,5.37601045,1250.4,1250.3,24.09312]
[1672961409994,2.38937452,1250.4,1250.3,24.09312]
[1672961412567,2.98663593,1250.4,1250.3,16.09504]
[1672961412906,2.98663593,1250.4,1250.3,0.099]
[1672961412907,5.15171681,1250.4,1250.3,0.099]
[1672961413122,2.1647525,1250.4,1250.1,8.09779]
[1672961413327,4.1816778,1250.2,1250.1,24.09651]
[1672961413579,1.79214763,1250.2,1250.1,24.09651]
[1672961413728,1.79214763,1250.2,1250.1,16.09715]
[1672961414239,1.79214763,1250.2,1250.1,27.09651]
[1672961418478,2.45553017,1250.3,1250.1,31.695603]
[1672961418479,1.85814763,1250.3,1250.1,31.695603]
[1672961418828,4.2476778,1250.4,1250.1,31.695603]
[1672961419017,4.2476778,1250.4,1250.1,32.17416225]
[1672961419018,4.1816778,1250.4,1250.1,32.17416225]
[1672961419942,4.1816778,1250.4,1250.1,32.20001741]
[1672961420368,4.1816778,1250.4,1250.3,31.99232]
[1672961420598,1.79214763,1250.4,1250.3,32.09132]
[1672961420766,1.79214763,1250.4,1250.3,24.09324]
[1672961421835,1.79214763,1250.4,1250.3,24.08949099]
[1672961422075,4.1816778,1250.4,1250.3,24.08949099]
[1672961424230,2.98691272,1250.4,1250.3,16.09141099]
[1672961424499,1.54216993,1250.4,1250.3,8.09708]
[1672961424672,1.54216993,1250.4,1250.3,0.099]
[1672961424885,5.12283968,1250.4,1250.2,24.0945]
[1672961425212,2.3872854,1250.3,1250.2,24.0945]
[1672961425428,2.3872854,1250.3,1250.2,27.0945]
[1672961425687,4.17762873,1250.3,1250.2,27.0945]
[1672961425826,4.17762443,1250.3,1250.2,27.0945]
[1672961426708,1.79033903,1250.3,1250.2,27.0945]
[1672961426876,1.79033903,1250.3,1250.2,31.41495044]
[1672961427099,0.066,1250.4,1250.2,31.64495044]
[1672961427425,2.38729422,1250.5,1250.4,31.98976]
[1672961427592,2.38729422,1250.5,1250.4,32.08876]
[1672961432450,2.98799687,1250.5,1250.4,32.08876]
[1672961432646,5.97210362,1250.5,1250.4,32.08876]
[1672961434501,5.97210362,1250.5,1250.4,24.09132]
[1672961434502,3.58481822,1250.5,1250.4,24.09132]
[1672961434875,3.58481822,1250.5,1250.4,8.09644]
[1672961435280,3.58481822,1250.5,1250.4,16.09388]
[1672961436392,3.58481822,1250.5,1250.4,24.09132]
[1672961436708,3.58481822,1250.5,1250.4,16.09388]
[1672961437233,3.58481822,1250.5,1250.4,24.09132]
[1672961437386,3.58481822,1250.5,1250.4,16.09388]
[1672961438338,3.58191138,1250.5,1250.4,16.09388]
[1672961438552,3.58191138,1250.5,1250.4,24.09132]
[1672961438786,3.58191138,1250.5,1250.4,8.09644]
[1672961438963,3.58191138,1250.5,1250.4,0.099]
[1672961439172,1.32266274,1250.5,1250.3,3.0]
[1672961439437,5.37428293,1250.4,1250.3,10.99801]
[1672961439649,5.37428293,1250.4,1250.3,11.09701]
[1672961440283,5.37428293,1250.4,1250.3,3.099]
[1672961440440,5.37428293,1250.4,1250.3,10.99808]
[1672961440641,5.37428293,1250.4,1250.3,11.09708]
[1672961440871,2.98571274,1250.4,1250.3,11.09708]
[1672961441250,5.37426611,1250.4,1250.3,11.09708]
[1672961441395,2.98571274,1250.4,1250.3,19.09516]
[1672961441608,2.98571274,1250.4,1250.3,27.09324]
[1672961442463,2.98771274,1250.4,1250.3,27.09024]
[1672961442695,2.98571274,1250.4,1250.3,27.09324]
[1672961447236,5.37463371,1250.4,1250.3,27.09324]
[1672961447381,2.38892097,1250.4,1250.3,27.09324]
[1672961449058,4.18066162,1250.4,1250.3,27.09324]
[1672961449198,2.38892097,1250.4,1250.3,27.09324]
[1672961450353,2.38892097,1250.4,1250.3,31.744456]
[1672961451611,4.18086326,1250.4,1250.3,31.744456]
[1672961451821,2.38892097,1250.4,1250.3,31.744456]
[1672961452892,5.37463371,1250.4,1250.3,31.744456]
[1672961454522,5.3754049,1250.4,1250.3,31.744456]
[1672961455929,2.98571274,1250.4,1250.3,31.744456]
[1672961456925,5.37558301,1250.4,1250.3,31.744456]
[1672961457512,2.98571274,1250.4,1250.3,31.744456]
[1672961462524,2.98571274,1250.4,1250.3,31.74079261]
[1672961463260,2.98571274,1250.4,1250.3,19.09149661]
[1672961464182,2.98571274,1250.4,1250.3,16.09516]
[1672961465875,2.98571274,1250.4,1250.3,8.09708]
[1672961466090,4.24447438,1250.5,1250.3,8.09708]
[1672961466255,4.17847438,1250.5,1250.3,8.09708]
[1672961466475,2.98805901,1250.4,1250.3,8.09708]
[1672961466683,2.98805215,1250.4,1250.3,24.09324]
[1672961466892,2.98798106,1250.4,1250.3,24.09324]
[1672961468800,2.98798106,1250.4,1250.3,16.09516]
[1672961469210,2.98798106,1250.4,1250.3,24.09324]
[1672961470296,5.37889325,1250.4,1250.3,24.09324]
[1672961471481,2.98798106,1250.4,1250.3,24.09324]
[1672961476308,2.98798106,1250.4,1250.3,28.444456]
[1672961479779,3.03798106,1250.4,1250.3,28.444456]
[1672961480103,2.98798106,1250.4,1250.3,28.444456]
[1672961480907,2.98798106,1250.4,1250.3,20.446376]
[1672961481281,2.98798106,1250.4,1250.3,8.09708]
[1672961481618,2.98998715,1250.4,1250.3,8.09708]
[1672961482512,2.98998715,1250.4,1250.3,8.09407974]
[1672961485786,2.98998715,1250.4,1250.3,16.09215974]
[1672961485932,3.58066975,1250.4,1250.3,16.09215974]
[1672961486861,4.84467438,1250.5,1250.3,16.09215974]
[1672961487074,4.77867438,1250.5,1250.3,16.09215974]
[1672961488022,4.17847438,1250.5,1250.3,16.09215974]
[1672961489160,3.58066975,1250.4,1250.3,16.09215974]
[1672961490734,4.24447438,1250.5,1250.3,16.09215974]
[1672961491082,4.17847438,1250.5,1250.3,16.09215974]
[1672961491303,4.17847438,1250.5,1250.3,24.09023974]
[1672961491816,4.17847438,1250.5,1250.3,16.09215974]
[1672961492444,4.17847438,1250.5,1250.3,0.099]
[1672961492445,3.58066975,1250.4,1250.3,0.099]
[1672961492766,3.58066975,1250.4,1250.2,35.41578]
[1672961492767,3.58066975,1250.4,1250.2,19.51792]
[1672961492920,3.58066975,1250.4,1250.2,11.5197]
[1672961493269,3.58066975,1250.4,1250.2,19.51831]
[1672961493621,3.58066975,1250.4,1250.2,11.5197]
[1672961493759,7.83692668,1250.4,1250.2,11.5197]
[1672961494133,2.9904818,1250.3,1250.2,11.5197]